Cogmind - Beta 13 @@@ ROGUE MODE // 2024.03.19 @ 04:12:00 Player: Carpathian Result: Self-destructed Performance ------------- Evolutions (2) 1000 Regions Visited (4) 800 Robots Destroyed (13) 65 Value Destroyed (527) 527 Prototype IDs (0) 0 Alien Tech Used (0) 0 Bonus (470) 470 TOTAL SCORE: 2862 Bonus ------- Pacifist 470 Cogmind --------- Core Integrity 268/550 Matter 281/300 Energy 265/265 System Corruption 0% Temperature Warm (112) Movement Core (300) Ox5 Location -8/Materials Parts ------- > --- POWER (2) -------- Improved Ion Engine > --- PROPULSION (2) --- (None) > --- UTILITY (5) ------ Improved Heat Sink Small Storage Unit Targeting Computer > --- WEAPON (2) ------- Particle Gun > --- INVENTORY (8) ---- Light Nuclear Core Light Treads Light Treads Aluminum Leg Aluminum Leg Improved Heat Sink Minigun Peak State ------------ > --- POWER ------------ Ion Engine Light Deuterium Engine > --- PROPULSION ------- Aluminum Leg Carbon-fiber Leg > --- UTILITY ---------- Improved Heat Sink Small Storage Unit Targeting Computer > --- WEAPON ----------- Field Laser Heavy Laser > --- INVENTORY -------- Light Treads Light Treads Minigun [Rating: 20] Favorites ----------- Power Ion Engine Engine Ion Engine Propulsion Aluminum Leg Leg Aluminum Leg Utility Small Storage Unit Device High-powered Tractor Beam Storage Small Storage Unit Processor Targeting Computer Weapon Assault Rifle Energy Gun Heavy Laser Energy Cannon EM Pulse Cannon Ballistic Gun Assault Rifle Build | -11 -10 -9 -9 -8 ------- Run | Yrd Mat Mat Min Mat Slots Evolved 4 | . . 2 . 2 Power 1 | . . . . 1 Propulsion . | . . . . . Utility 3 | . . 2 . 1 Weapon . | . . . . . Parts Attached 19 | 6 1 . 1 11 Power 4 | 1 . . . 3 Engine 4 | 1 . . . 3 Core . | . . . . . Reactor . | . . . . . Propulsion 3 | 2 . . . 1 Treads . | . . . . . Leg 3 | 2 . . . 1 Wheel . | . . . . . Hover . | . . . . . Flight . | . . . . . Utility 5 | 1 1 . 1 2 Device 3 | . . . 1 2 Storage 1 | 1 . . . . Processor 1 | . 1 . . . Hackware . | . . . . . Protection . | . . . . . Artifact . | . . . . . Weapon 7 | 2 . . . 5 Energy Gun 3 | . . . . 3 Energy Cannon 1 | . . . . 1 Ballistic Gun 3 | 2 . . . 1 Ballistic Cannon . | . . . . . Launcher . | . . . . . Special Weapon . | . . . . . Impact Weapon . | . . . . . Slashing Weapon . | . . . . . Piercing Weapon . | . . . . . Special Melee Weapon . | . . . . . Unidentified Prototypes . | . . . . . Parts Lost 5 | . . . . 5 Power 1 | . . . . 1 Propulsion 2 | . . . . 2 Utility 1 | . . . . 1 Weapon 1 | . . . . 1 Highest Loss Streak 3 | . . . . 3 To Critical Strikes . | . . . . . Average Slot Usage (%) 81 | . 90 77 87 79 Engine 14 | . 14 11 11 15 Leg 19 | . 28 22 22 17 Device 9 | . . . 10 10 Storage 9 | . 14 11 11 9 Processor 8 | . 5 11 11 9 Energy Gun 6 | . . . . 8 Ballistic Gun 13 | . 28 22 22 9 Naked Turns . | . . . . . Heaviest Build 26 | 13 13 13 14 26 Greatest Support 25 | 20 20 20 20 25 Greatest Overweight (x) 1 | . . . . 1 Average Overweight (x) . | . . . . . Largest Inventory Capacity 8 | 8 8 8 8 8 Average Capacity 7 | 7 8 8 8 8 Most Carried 7 | 3 4 3 4 7 Average Carried 3 | 1 3 3 3 3 Final Capacity 8 | 8 8 8 8 8 Final Carried 7 | 3 3 3 3 7 Class Distribution -------------------- 100% | Mutant Dominant Class ---------------- Mutant | -10/Materials Mutant | -9/Materials Mutant | -9/Mines Mutant | -8/Materials Resources | -11 -10 -9 -9 -8 ----------- Run | Yrd Mat Mat Min Mat Matter Collected 499 | 235 25 . 20 219 Remotely 92 | . . . 10 82 Salvage Created 697 | . . . . 697 Parts 28 | . . . . 28 Haulers Intercepted 1 | . . . . 1 Recyclers Shooed . | . . . . . Parts Field Recycled . | . . . . . Retrieved Matter . | . . . . . Parts Self-Destructed . | . . . . . Prevented . | . . . . . Kills | -11 -10 -9 -9 -8 ------- Run | Yrd Mat Mat Min Mat Combat Hostiles Destroyed 11 | . . . . 11 Guns 10 | . . . . 10 Cannons 1 | . . . . 1 Classes Destroyed 5 | . . . . 5 Hauler 1 | . . . . 1 Recycler 1 | . . . . 1 Grunt 9 | . . . . 9 Brawler 1 | . . . . 1 Duelist 1 | . . . . 1 Best Kill Streak 6 | . . . . 6 Combat Bots Only 5 | . . . . 5 Max Kills in Single Turn 1 | . . . . 1 Gunslinging . | . . . . . Exploded . | . . . . . Melee . | . . . . . Uniques/NPCs Destroyed . | . . . . . Combat | -11 -10 -9 -9 -8 -------- Run | Yrd Mat Mat Min Mat Hostile Shots Fired 110 | . . . . 110 Missed 26 | . . . . 26 Damage Taken 1338 | . . . . 1338 Core 282 | . . . . 282 Absorbed by Shields . | . . . . . Core Remaining (%) 100 | 100 100 . 100 . Volleys Fired 60 | . . . . 60 Largest 2 | . . . . 2 Hottest 134 | . . . . 134 Shots Fired 118 | . . . . 118 Gun 111 | . . . . 111 Cannon 7 | . . . . 7 Launcher . | . . . . . Special . | . . . . . Kinetic 47 | . . . . 47 Thermal 64 | . . . . 64 Explosive . | . . . . . Electromagnetic 7 | . . . . 7 Robot Hit Streak 14 | . . . . 14 Robot Miss Streak 4 | . . . . 4 Penetration Max . | . . . . . Secondary Targets . | . . . . . Shots Hit Robots 81 | . . . . 81 Core Hits 28 | . . . . 28 Critical Kills . | . . . . . Critical Parts Destroyed . | . . . . . Critical Strikes 2 | . . . . 2 Burn 2 | . . . . 2 Melee Attacks . | . . . . . Impact . | . . . . . Slashing . | . . . . . Piercing . | . . . . . Sneak Attacks . | . . . . . Combat Hostiles . | . . . . . Follow-up Attacks . | . . . . . Damage Inflicted 1427 | . . . . 1427 Guns 1280 | . . . . 1280 Cannons 147 | . . . . 147 Explosions . | . . . . . Melee . | . . . . . Ramming . | . . . . . Kinetic 497 | . . . . 497 Thermal 783 | . . . . 783 Explosive . | . . . . . Electromagnetic 147 | . . . . 147 Impact . | . . . . . Slashing . | . . . . . Piercing . | . . . . . Highest Corruption . | . . . . . Average Corruption . | . . . . . Corruption Purged . | . . . . . Corruption Blocked . | . . . . . Overload Shots . | . . . . . Overflow Damage . | . . . . . Projectiles . | . . . . . Explosions . | . . . . . Melee . | . . . . . Knockbacks . | . . . . . Impact . | . . . . . Kinetic . | . . . . . Secondary . | . . . . . Self-Inflicted Damage . | . . . . . Shots . | . . . . . Rammed . | . . . . . Targets Rammed . | . . . . . Kicked . | . . . . . Crushed . | . . . . . Highest Temperature 329 | . . . . 329 Average Temperature 123 | . . . . 123 Received Heat Transfer 783 | . . . . 783 Effects 2 | . . . . 2 Shutdowns 1 | . . . . 1 Short Circuit 1 | . . . . 1 Siege Activations . | . . . . . Robots Corrupted . | . . . . . Combat Hostiles . | . . . . . Parts Fried . | . . . . . Impact Corruptions . | . . . . . Robots Melted 1 | . . . . 1 Combat Hostiles . | . . . . . Parts Melted 2 | . . . . 2 Heat Transferred 1776 | . . . . 1776 Parts Sabotaged . | . . . . . Parts Stolen . | . . . . . Parts Stripped . | . . . . . Power Chain Reactions . | . . . . . Alert | -11 -10 -9 -9 -8 ------- Run | Yrd Mat Mat Min Mat Peak Influence 177 | . . . . 177 Initial . | . . . . . Average 35 | . . . . 53 Maximum Alert Level . | . . . . . Low Security (%) 100 | 100 100 100 100 100 Level 1 . | . . . . . Level 2 . | . . . . . Level 3 . | . . . . . Level 4 . | . . . . . Level 5 . | . . . . . High Security . | . . . . . Max Security . | . . . . . Squads Dispatched 1 | . . . . 1 Investigation 1 | . . . . 1 Extermination . | . . . . . Reinforcement . | . . . . . Assault . | . . . . . Garrison . | . . . . . Intercept . | . . . . . Searches Triggered . | . . . . . Construction Impeded . | . . . . . Haulers Reinforced . | . . . . . Active Scanning Responses . | . . . . . Cargo Convoy Interrupts . | . . . . . Stealth | -11 -10 -9 -9 -8 --------- Run | Yrd Mat Mat Min Mat Distress Signals 1 | . . . . 1 Communications Jammed . | . . . . . Distress Signals . | . . . . . Times Spotted 20 | . . . . 20 Peak Tracking Total 7 | . . . . 7 Tactical Retreats . | . . . . . Traps | -11 -10 -9 -9 -8 ------- Run | Yrd Mat Mat Min Mat Traps Triggered 1 | . . . . 1 Indirectly . | . . . . . Trap Hack Attempts . | . . . . . Triggered . | . . . . . Disarmed . | . . . . . Reprogrammed . | . . . . . Reused . | . . . . . Traps Extracted . | . . . . . Installed . | . . . . . Triggered . | . . . . . Machines | -11 -10 -9 -9 -8 ---------- Run | Yrd Mat Mat Min Mat Machines Disabled 1 | . . . . 1 Max in Single Turn 1 | . . . . 1 Machines Repaired . | . . . . . Machines Dismantled . | . . . . . Machines Sabotaged . | . . . . . Overloaded Fab Kills . | . . . . . Hacking | -11 -10 -9 -9 -8 --------- Run | Yrd Mat Mat Min Mat Machines Accessed 2 | . . . . 2 Terminals 2 | . . . . 2 Fabricators . | . . . . . Repair Stations . | . . . . . Recycling Units . | . . . . . Scanalyzers . | . . . . . Garrison Access . | . . . . . Total Hacks 2 | . . . . 2 Successful 2 | . . . . 2 Failed . | . . . . . Catastrophic . | . . . . . Database Lockouts . | . . . . . Manual . | . . . . . Terminals 2 | . . . . 2 Fabricators . | . . . . . Repair Stations . | . . . . . Recycling Units . | . . . . . Scanalyzers . | . . . . . Garrison Access . | . . . . . Terminal Hacks 2 | . . . . 2 Locate Traps 1 | . . . . 1 Hauler Manifests 1 | . . . . 1 Fabricator Hacks . | . . . . . Repair Station Hacks . | . . . . . Recycling Unit Hacks . | . . . . . Scanalyzer . | . . . . . Garrison Access Hacks . | . . . . . Unauthorized Hacks . | . . . . . Terminals . | . . . . . Fabricators . | . . . . . Repair Stations . | . . . . . Recycling Units . | . . . . . Scanalyzers . | . . . . . Garrison Access . | . . . . . Data Cores Recovered . | . . . . . Used . | . . . . . Hacking Detections . | . . . . . Full Trace Events . | . . . . . Feedback Events . | . . . . . Feedback Blocked . | . . . . . Robot Schematics Acquired . | . . . . . Robots Built . | . . . . . Authchips . | . . . . . Time . | . . . . . Total Robot Build Rating . | . . . . . Part Schematics Acquired . | . . . . . Parts Built . | . . . . . Authchips . | . . . . . Time . | . . . . . Total Part Build Rating . | . . . . . Parts Repaired . | . . . . . Time . | . . . . . Parts Recycled . | . . . . . Recycled Matter . | . . . . . Retrieved Matter . | . . . . . Retrieved Components . | . . . . . Parts Scanalyzed . | . . . . . Part Schematics Acquired . | . . . . . Parts Damaged . | . . . . . Bothacking | -11 -10 -9 -9 -8 ------------ Run | Yrd Mat Mat Min Mat Used RIF Installer . | . . . . . Robots Hacked . | . . . . . Non-combat . | . . . . . Combat . | . . . . . Robot Hacks Applied . | . . . . . Relay Couplers Released . | . . . . . Fabnet Peak Effective % . | . . . . . Robots Rewired . | . . . . . Allies Hacked . | . . . . . Hacks Repelled . | . . . . . Allies | -11 -10 -9 -9 -8 -------- Run | Yrd Mat Mat Min Mat Total Allies . | . . . . . Largest Group . | . . . . . Highest-Rated Group . | . . . . . Highest-Rated Ally . | . . . . . Total Orders . | . . . . . Ally Attacks . | . . . . . Total Damage . | . . . . . Kills . | . . . . . Allies Corrupted . | . . . . . Allies Melted . | . . . . . Intel | -11 -10 -9 -9 -8 ------- Run | Yrd Mat Mat Min Mat Robot Analysis Total . | . . . . . Derelict Logs Recovered . | . . . . . Drone Launches . | . . . . . Drone Recoveries . | . . . . . Exploration | -11 -10 -9 -9 -8 ------------- Run | Yrd Mat Mat Min Mat Turns Passed 1042 | 109 112 9 122 690 Spaces Moved 594 | 86 92 8 101 307 Core 12 | 12 . . . . Treads . | . . . . . Legs 582 | 74 92 8 101 307 Wheels . | . . . . . Hover . | . . . . . Flight . | . . . . . Fastest Speed 50 | 50 120 120 120 120 Average Speed 127 | 110 120 120 120 136 Slowest Speed 190 | 120 120 120 120 190 Overloaded Moves . | . . . . . Propulsion Burnouts . | . . . . . Robots Hopped . | . . . . . Cave-ins Triggered . | . . . . . Exploration Rate (%) 12 | 4 18 1 16 21 Regions Visited 4 Branch Regions 1 Pre-discovered Areas . | . . . . . Known Exits Taken . | . . . . . Unknown Exits Taken 4 | 1 1 1 1 . Scrap Searched 1 | . . . 1 . Spaces Dug . | . . . . . Terrain Destroyed . | . . . . . Melee . | . . . . . Projectile . | . . . . . AOE . | . . . . . Terrain Rammed . | . . . . . Walls Destroyed . | . . . . . Machines Disabled . | . . . . . Actions | -11 -10 -9 -9 -8 --------- Run | Yrd Mat Mat Min Mat Total 767 | 100 93 7 102 465 Wait 66 | . . . . 66 Move 590 | 85 91 7 100 307 Hop . | . . . . . Pick Up 25 | 9 1 . 1 14 Fast Attach . | . . . . . Attach 13 | 6 1 . 1 5 Detach . | . . . . . Swap 6 | . . . . 6 Drop 7 | . . . . 7 Fire 60 | . . . . 60 Melee . | . . . . . Ram . | . . . . . Kick . | . . . . . Crush . | . . . . . Escape Stasis . | . . . . . Rewire . | . . . . . Trap . | . . . . . Miscellaneous . | . . . . . Route ------- -11/Scrapyard -10/Materials -9/Materials -9/Mines -8/Materials History --------- Turn | Location | Event 17 | -11/Scrapyard | Discovered new exit (range 16) 110 | -11/Scrapyard | Entered Materials 198 | -10/Materials | Discovered new exit (range 16) 222 | -10/Materials | Entered another Materials area 222 | -9/Materials | Evolved 2 slots: Utility x2 222 | -9/Materials | Discovered new exit (range 7) 231 | -9/Materials | Entered Mines 287 | -9/Mines | Met a Derelict bent on vengeance 300 | -9/Mines | Build established: Mutant 345 | -9/Mines | Discovered new exit (range 7) 353 | -9/Mines | Entered Materials 353 | -8/Materials | Evolved 2 slots: Power x1, Utility x1 1043 | -8/Materials | Core integrity fell below 50% 1043 | -8/Materials | Self-destructed Last Messages --------------- 00946_ U-05 Engineer lays Concrete. 00976_ Matter Filter disabled. 00976_ G-47 Trooper destroyed. 00985_ B-36 Bruiser destroyed. 00988_ Acquired 24 matter. 00992_ Acquired Particle Gun. 00995_ Acquired Lgt. Nuclear Core. 00998_ Acquired Aluminum Leg. 01001_ Acquired 4 matter. 01003_ G-47 Trooper destroyed. 01004_ Acquired 4 matter. 01007_ Acquired Aluminum Leg. 01022_ Carbon-fiber Leg destroyed. 01029_ Aluminum Leg destroyed. 01031_ M-13 Machinist repairs G-47 Trooper. 01038_ Hvy. Laser destroyed. 01039_ G-47 Trooper heat short circuits Aluminum Leg. 01039_ M-13 Machinist repairs G-47 Trooper. 01042_ G-47 Trooper overheating. Map ----- +----------------------------------------------------+ | ! =## #????????????????????????????????????????? | | == ## ############ ????????????????????????????? | | #### ??????????????????????????? | | ??????????????????????????? | | ??????????????????????????? | | ??????????????????????????? | | #?????????????????????????? | | #?????????????????????????? | | """ """ """ #?????????????????????????? | | """"" """"" """"" #?????????????????????????? | | """"" """"" """"" #?????????????????????????? | | """"" """"" """"" #?????????????????????????? | | """ """ """ #?????????????????????????? | | #?????????????????????????? | | #?????????????????????????? | | ####### #?????????????????????????? | | ??????# #?????????????????????????? | | ??????# #?????????????????????????? | | ??????+ #?????????????????????????? | | ??????# #?????????????????????????? | | ??????# #?????????????????????????? | | ??????# ###########m#####??????????????????????? | | ??????# #???# mg #??????????????????????? | | ??????# #???# """""%gg #??????????????????????? | | ??????# #???# """"""% #??????????????????????? | | ??????+ #???# """"""%[@#??????????????????????? | | ??????# #???# """""""/=#??????????????????????? | | ??????# #???# """"""%%!#??????????????????????? | | ??????# #???# % #??????????????????????? | | ??????# #???##+##########??????????????????????? | | ??????# #????# # #??????????????????????? | | ??????# #????# # """"" #??????????????????????? | | ??????#= ###### # """"" #??????????????????????? | | ??????#%= =% **# """"" #??????????????????????? | | ??????#== ] =%[" """"" #??????????????????????? | | ??????# =% # """"" #??????????????????????? | | ??????############ """"" #??????????????????????? | | ?????????????????# """"" #??????????????????????? | | ?????????????????# #??????????????????????? | | ?????????????????##########??????????????????????? | | ?????????????????????????????????????????????????? | | ?????????????????????????????????????????????????? | | ?????????????????????????????????????????????????? | | ?????????????????????????????????????????????????? | | ?????????????????????????????????????????????????? | | ?????????????????????????????????????????????????? | | ?????????????????????????????????????????????????? | | ?????????????????????????????????????????????????? | | ?????????????????????????????????????????????????? | | ?????????????????????????????????????????????????? | +----------------------------------------------------+ Best States ------------- Heat Dissipation 45 Energy Generation 19 Energy Capacity 400 Matter Stores 300 Matter Capacity 300 Sight Range 16 Terrain Scan Density 10 Evasion (%) 55 Targeting Accuracy 5 Item Schematics ----------------- None Robot Schematics ------------------ None Fabricated ------------ Nothing Alien Tech Used ----------------- None Achievements -------------- None Challenges ------------ None Game ------ Seed MetafieldFlightPenetrator Manual? 0 Play Time 00:11:10 Cumulative 16.1 hours Start 2024.03.19 @ 04:05:17 End 2024.03.19 @ 04:12:00 Sessions 1 Manual Loads 0 Difficulty Rogue Special Mode None Game No. 88 Rogue 88 Adventurer 0 Explorer 0 Win Type - Total 0 Types 0/0/0/0/0/0/0/0/0 Lore% 7 Gallery% 21 Achievement% 16 Wizard Run 0 Options --------- Layout 1 ASCII 0 Keyboard 0 Movement Arrows Keybinds 0 Fullscreen 2 Font 32/Cog Map View 50x35 Zoom Use 0% Tactical HUD 1 Map Filters NONE Filters NONE Steam 1 RUN: 4200f3c4-2b3d-4e24-8e5a-69149c7d855f